bitfinex-derivatives/quotes_ETHF0:USTF0_20250926
["timestamp","ask_amount","ask_price","bid_price","bid_amount"]
[1758886506037,16.06792801,3906.6,3906.5,1.08663]
[1758886507143,3.2078,3907.1,3907.0,0.63328]
[1758886507340,3.30618778,3907.1,3907.0,1.08658]
[1758886507538,19.27577929,3907.1,3907.0,1.08658]
[1758886508343,19.27577929,3907.1,3907.0,0.6262]
[1758886508535,24.54077929,3907.1,3906.6,0.438]
[1758886508743,24.54077929,3907.1,3906.5,0.4379]
[1758886508744,0.55876778,3907.0,3906.5,0.4379]
[1758886508942,15.96959151,3906.6,3906.5,1.33634]
[1758886509141,15.96959151,3906.6,3906.1,3.2078]
[1758886509142,0.46046,3906.4,3906.1,0.89848]
[1758886509343,15.96959151,3906.2,3906.1,0.46049]
[1758886509542,16.06805654,3906.2,3906.1,0.89849]
[1758886509944,0.09846503,3906.2,3906.1,0.89849]
[1758886510244,16.06805654,3906.2,3906.1,0.89849]
[1758886510642,16.06805654,3906.2,3906.1,0.438]
[1758886510844,16.06805654,3906.2,3906.0,0.165]
[1758886511134,0.09850697,3906.1,3906.0,0.6255]
[1758886511544,16.06809848,3906.1,3906.0,0.165]
[1758886511845,16.06809848,3906.1,3906.0,0.4605]
[1758886512439,16.06809848,3906.1,3906.0,0.438]
[1758886512739,16.06809848,3906.1,3906.0,1.06989]
[1758886513041,0.09850697,3906.1,3906.0,1.06989]
[1758886513541,16.06809848,3906.1,3906.0,1.06989]
[1758886513739,16.06809848,3906.1,3906.0,1.0699]
[1758886513944,16.06809848,3906.1,3906.0,0.1714]
[1758886514141,16.06809848,3906.1,3906.0,0.6094]
[1758886514534,16.52857848,3906.1,3906.0,0.6094]
[1758886515039,16.06809848,3906.1,3906.0,0.6094]
[1758886515346,16.52858848,3906.1,3906.0,1.06989]
[1758886515547,16.52858848,3906.1,3906.0,0.6094]
[1758886515848,16.06809848,3906.1,3906.0,1.0699]
[1758886517344,16.06824675,3906.1,3906.0,1.0699]
[1758886517547,16.06824675,3906.1,3906.0,1.3754]
[1758886517747,16.06824675,3906.1,3906.0,1.0699]
[1758886519448,16.06824675,3906.1,3906.0,1.3754]
[1758886520550,0.09865524,3906.1,3906.0,1.3754]
[1758886520751,0.09865524,3906.1,3906.0,1.6535]
[1758886520939,16.06824675,3906.1,3906.0,1.6535]
[1758886521544,16.06824675,3906.1,3906.0,1.3754]
[1758886521953,16.06824675,3906.1,3906.0,0.6094]
[1758886522150,16.52873675,3906.1,3906.0,0.6094]
[1758886522449,0.46055,3905.5,3905.4,0.438]
[1758886522643,0.09865524,3905.5,3905.4,0.46057]
[1758886522849,0.09865524,3905.5,3905.4,1.48217]
[1758886523050,0.09865524,3905.5,3905.4,4.68997]
[1758886523244,3.66828,3906.2,3906.1,0.46048]
[1758886523245,3.4718,3906.2,3906.1,0.46048]
[1758886523450,3.4718,3906.2,3906.1,1.20398]
[1758886523451,3.57030856,3906.2,3906.1,1.20398]
[1758886523652,4.03077856,3906.2,3906.1,0.89848]
[1758886523853,20.00037007,3906.2,3906.1,0.438]
[1758886524153,19.73637007,3906.2,3906.1,0.89849]
[1758886524353,19.27590007,3906.2,3906.1,0.89849]
[1758886524956,19.73638007,3906.2,3906.1,0.438]
[1758886525159,0.46049,3906.1,3905.6,0.264]
[1758886525359,0.46051,3905.9,3905.7,0.89853]
[1758886525562,0.55907479,3905.8,3905.7,0.89853]
[1758886525858,0.46054,3905.7,3905.6,0.72455]
[1758886526053,0.46055,3905.6,3905.5,0.63196]
[1758886526260,16.5286963,3905.6,3905.5,0.63196]
[1758886526658,16.5286963,3905.6,3905.5,0.46056]
[1758886527068,16.3321463,3905.6,3905.5,0.46056]
[1758886527657,16.0681463,3905.6,3905.5,0.89856]
[1758886527964,16.0681463,3905.6,3905.5,1.65356]
[1758886528867,0.09855479,3905.6,3905.5,1.91756]
[1758886529056,3.2078,3905.8,3905.7,0.89854]
[1758886529255,3.30657993,3905.8,3905.7,0.89854]
[1758886529657,19.27617144,3905.8,3905.7,0.89854]
[1758886529859,3.30657993,3905.8,3905.7,0.89854]
[1758886530157,3.30657993,3905.8,3905.7,1.48214]
[1758886531375,3.30657993,3905.8,3905.7,1.0216]
[1758886531667,3.30657993,3905.8,3905.7,1.48214]
[1758886532061,3.76709993,3905.8,3905.7,1.48214]
[1758886532368,0.46055,3905.6,3905.5,0.6094]
[1758886532560,16.52892144,3905.6,3905.5,0.6094]
[1758886532867,16.52892144,3905.6,3905.5,1.65356]
[1758886532868,0.09877993,3905.6,3905.5,1.65356]
[1758886535373,0.09877993,3905.6,3905.5,1.91856]
[1758886538967,16.52892144,3905.6,3905.5,1.91856]
[1758886539168,16.52892144,3905.6,3905.5,1.1799]
[1758886539473,16.52892144,3905.6,3905.5,0.4364]
[1758886539673,16.06837144,3905.6,3905.5,0.8865]
[1758886539973,16.52892144,3905.6,3905.5,1.34706]
[1758886540168,16.06837144,3905.6,3905.5,1.34706]
[1758886540374,16.06837144,3905.6,3905.5,1.63796]
[1758886540676,0.09877993,3905.6,3905.5,1.92496]
[1758886545775,3.2078,3906.2,3906.1,1.48589]
[1758886546276,3.2078,3906.2,3906.1,1.74989]
[1758886546876,19.17739151,3906.2,3906.1,1.74989]
[1758886547077,19.17739151,3906.2,3906.1,1.46289]
[1758886547781,19.17739151,3906.2,3906.1,1.74989]
[1758886548672,19.63787151,3906.2,3906.1,0.7115]
[1758886548882,19.63787151,3906.2,3906.1,0.264]
[1758886549382,0.46049,3906.1,3906.0,0.6215]
[1758886549574,15.96959151,3906.1,3906.0,1.082]
[1758886549879,16.43008151,3906.1,3906.0,1.3729]
[1758886550081,16.43008151,3906.1,3906.0,1.082]
[1758886550580,19.03786513,3906.1,3906.0,1.082]
[1758886550786,18.57737513,3906.1,3906.0,1.3729]
[1758886551480,18.57737513,3906.1,3906.0,1.6599]
[1758886553880,18.57737513,3906.1,3906.0,1.3729]
[1758886554783,18.57737513,3906.1,3906.0,1.082]
[1758886557682,18.67563778,3906.1,3906.0,1.082]
[1758886558785,18.67563778,3906.1,3906.0,1.3729]
[1758886558981,18.93863778,3906.1,3906.0,1.6599]
[1758886560284,18.67563778,3906.1,3906.0,1.6599]
[1758886561785,19.13612778,3906.1,3906.0,1.6599]
[1758886561986,18.67563778,3906.1,3906.0,1.6599]
[1758886562682,19.13612778,3906.1,3906.0,1.6599]
[1758886562884,19.13613274,3906.1,3906.0,1.3729]
[1758886563582,18.67564274,3906.1,3906.0,1.3729]
[1758886564184,2.96905123,3906.1,3906.0,1.6599]
[1758886565284,19.13613274,3906.1,3906.0,1.082]
[1758886565478,18.67564274,3906.1,3906.0,1.082]
[1758886565676,16.06785912,3906.1,3906.0,1.6475]
[1758886565892,0.09826761,3906.1,3906.0,1.6475]
[1758886567390,0.09826761,3906.1,3906.0,1.9105]
[1758886572000,2.3134823,3906.1,3906.0,1.9105]
[1758886573899,18.28307381,3906.1,3906.0,1.6475]
[1758886575403,18.28307381,3906.1,3906.0,1.3687]
[1758886575905,18.28307381,3906.1,3906.0,0.9082]
[1758886576198,18.28307381,3906.1,3906.0,1.082]
[1758886576603,18.28307381,3906.1,3906.0,1.3581]
[1758886577704,18.54607381,3906.1,3906.0,1.082]
[1758886577899,18.28307381,3906.1,3906.0,1.3581]
[1758886578204,18.54607381,3906.1,3906.0,1.3581]
[1758886578500,18.54607381,3906.1,3906.0,1.082]
[1758886578697,19.00656381,3906.1,3906.0,0.174]
[1758886578892,18.54607381,3906.1,3905.8,0.72352]
[1758886579093,15.96959151,3905.9,3905.8,0.87802]
[1758886579305,16.33085912,3905.9,3905.8,0.87802]
[1758886581206,16.06785912,3905.9,3905.8,1.15412]
[1758886581500,16.33085912,3905.9,3905.8,1.15412]
[1758886581707,16.06785912,3905.9,3905.8,1.15412]
[1758886581908,16.33085912,3905.9,3905.8,1.15412]
[1758886582109,16.33085912,3905.9,3905.8,0.87802]
[1758886582313,16.79136912,3905.9,3905.8,0.87802]
[1758886582501,16.79136912,3905.9,3905.8,0.4175]
[1758886582807,16.33085912,3905.9,3905.8,0.4175]
[1758886583004,16.79136912,3905.9,3905.8,0.87802]
[1758886585608,17.48214912,3905.9,3905.5,0.174]
[1758886585912,0.46061,3905.1,3905.0,0.5889]
[1758886586211,0.46061,3905.1,3904.4,2.51590989]
[1758886586212,21.75387381,3905.1,3904.1,0.91010653]
[1758886586508,2.21521469,3904.2,3904.1,0.73682]
[1758886586708,2.3134823,3904.2,3904.1,1.01702]
[1758886586909,2.3134823,3904.2,3904.1,1.43452]
[1758886587204,2.3134823,3904.2,3904.1,0.9738]
[1758886587402,2.7741923,3904.2,3904.1,0.4175]
[1758886587600,0.09826761,3904.2,3904.1,1.43452]
[1758886588306,0.09826761,3904.2,3904.1,1.69752]
[1758886588505,0.09826761,3904.2,3904.1,4.90532]
[1758886589913,0.09826761,3904.2,3904.1,1.69752]
[1758886590210,2.3134823,3904.2,3904.1,1.69752]
[1758886591008,18.28307381,3904.2,3904.1,0.6805]
[1758886591204,18.28307381,3904.2,3904.1,0.9566]
[1758886591513,18.74378381,3904.2,3904.1,1.41732]
[1758886591705,18.74378381,3904.2,3904.1,1.69752]
[1758886591911,18.28307381,3904.2,3904.1,1.69752]
[1758886593813,18.74378381,3904.2,3904.1,0.9566]
[1758886594106,18.28307381,3904.2,3904.1,1.41732]
[1758886595006,18.28307381,3904.2,3904.1,1.69752]
[1758886596212,0.09826761,3904.2,3904.1,1.69752]
[1758886597014,2.3134823,3904.2,3904.1,1.69752]
[1758886602727,2.3134823,3904.2,3904.1,1.43452]
[1758886603019,2.3134823,3904.2,3904.1,1.70492]
[1758886604012,0.09826761,3904.2,3904.1,1.70492]
[1758886604213,0.09826761,3904.2,3904.1,3.92013469]
[1758886605021,0.09826761,3904.2,3904.1,8.92013469]
[1758886605224,3.2078,3904.6,3904.5,1.20917]
[1758886605517,3.30559506,3904.6,3904.5,1.87347]
[1758886606412,5.06e-06,3904.6,3904.5,6.87347]
[1758886606617,3.2078,3905.0,3904.9,0.4013]
[1758886606813,3.2078,3905.0,3904.9,1.69753]
[1758886607021,3.2078,3905.5,3905.4,1.43447]
[1758886607239,3.2078,3905.5,3905.4,1.69747]
[1758886607618,19.17739151,3905.5,3905.4,1.69747]
[1758886607918,2.21521469,3905.7,3905.6,0.46054]
[1758886608121,5.44861469,3906.0,3905.9,0.46051]
[1758886608318,5.44861469,3906.0,3905.9,1.43441]
[1758886612325,5.42301469,3906.0,3905.9,1.43441]
[1758886612927,1.15128,3905.9,3905.5,0.1759]
[1758886613121,0.8132,3905.1,3905.0,0.46061]
[1758886613321,16.78279151,3905.1,3905.0,0.46061]
[1758886614525,0.291,3904.2,3904.1,3.4928]
[1758886614828,18.7649062,3904.2,3904.1,3.95352]
[1758886615029,18.7649062,3904.2,3904.1,4.64242]
[1758886615431,18.9980062,3904.2,3904.1,0.86202]
[1758886615624,18.9980062,3904.2,3904.1,0.46072]
[1758886615819,18.9980062,3904.2,3904.1,0.86202]
[1758886618023,18.9980062,3904.2,3904.1,1.14702]
[1758886618228,0.0256,3904.3,3904.1,1.03332]
[1758886618427,0.3147,3904.3,3904.2,0.9739]
[1758886618634,0.71264376,3904.3,3904.2,0.9739]
[1758886619725,16.68223527,3904.3,3904.2,1.14701]
[1758886619927,16.91533527,3904.3,3904.2,0.86201]
[1758886620331,16.68223527,3904.3,3904.2,1.43461]
[1758886620640,0.13254376,3904.3,3904.2,1.43461]
[1758886620832,0.42164376,3904.3,3904.2,1.43461]
[1758886621137,0.71264376,3904.3,3904.2,1.43461]
[1758886622436,0.13254376,3904.3,3904.2,1.43461]
[1758886624937,0.13254376,3904.3,3904.2,6.43461]
[1758886625938,3.4808,3905.1,3905.0,1.16602]
[1758886626241,3.4808,3905.1,3905.0,1.83812]
[1758886626540,19.45039151,3905.1,3905.0,1.83812]
[1758886627634,19.45039151,3905.1,3905.0,1.57512]
[1758886627834,19.45039151,3905.1,3905.0,1.83812]
[1758886628034,16.24259151,3905.1,3905.0,1.83812]
[1758886629937,0.273,3905.1,3905.0,1.83812]
[1758886630243,16.24259151,3905.1,3905.0,1.83812]
[1758886633245,3.7671,3905.5,3905.4,1.14107]
[1758886633646,19.73669151,3905.5,3905.4,1.14107]
[1758886634345,19.96049151,3905.5,3905.4,1.14107]
[1758886635840,3.7671,3905.5,3905.4,1.42507]
[1758886636040,3.91347503,3906.9,3905.9,1.42501]
[1758886636041,3.478,3906.0,3905.9,1.42501]
[1758886636240,19.44759151,3906.0,3905.9,1.68801]
[1758886636442,3.7671,3906.0,3905.9,1.68801]
[1758886637943,6.70560851,3906.0,3905.9,0.46051]
[1758886638147,22.67520002,3906.0,3905.9,0.46051]
[1758886638541,22.67520002,3906.0,3905.9,1.14101]
[1758886638738,19.84300894,3906.0,3905.9,1.42501]
[1758886639346,3.87341743,3906.0,3905.9,1.42501]
[1758886639948,6.48180851,3906.0,3905.9,1.42501]
[1758886640151,22.67520002,3906.0,3905.9,0.46051]
[1758886641047,22.67520002,3906.0,3905.9,0.87511]
[1758886641250,22.67520002,3906.0,3905.9,0.46051]
[1758886642152,22.67520002,3906.0,3905.9,0.87511]
[1758886642351,22.67520002,3906.0,3905.9,0.46051]
[1758886642952,22.66805299,3906.0,3905.9,0.46051]
[1758886644356,22.15515299,3906.0,3905.9,1.42501]
[1758886644553,3.8662704,3906.0,3905.9,1.42501]
[1758886646954,3.8662704,3906.0,3905.9,1.68801]
[1758886647153,4.0900704,3906.0,3905.9,1.68801]
[1758886647353,4.09005843,3906.0,3905.9,1.68801]
[1758886647860,4.09005843,3906.0,3905.9,1.40401]
[1758886648254,4.09005843,3906.0,3905.9,0.72351]
[1758886648650,4.09005843,3906.0,3905.9,1.13811]
[1758886649656,4.09005843,3906.0,3905.9,1.40401]
[1758886650456,3.33137843,3906.0,3905.9,1.68801]
[1758886650864,3.04227843,3906.0,3905.9,1.68801]
[1758886652264,2.77207843,3906.0,3905.9,1.68801]
[1758886652467,3.04227843,3906.0,3905.9,1.68801]
[1758886652956,9.03e-06,3906.0,3905.9,4.29640108]
[1758886653151,3.2078,3906.4,3906.3,1.42496]
[1758886653352,0.2957,3906.7,3906.6,1.42493]
[1758886653560,3.2078,3907.4,3907.3,0.46035]
[1758886653755,3.2078,3907.4,3907.3,1.14085]
[1758886653964,19.17739151,3907.4,3907.3,1.42485]
[1758886654165,15.96959151,3907.4,3907.3,1.42485]
[1758886655062,3.2078,3907.8,3907.7,1.1408]
[1758886655461,19.17739151,3907.8,3907.7,1.1408]
[1758886657466,19.17739151,3907.8,3907.7,1.4248]
[1758886658253,15.96959151,3907.8,3907.7,1.1408]
[1758886659667,15.96959151,3907.8,3907.7,0.8749]
[1758886659866,2.60839108,3908.0,3907.9,0.46028]
[1758886660260,18.57798259,3908.0,3907.9,0.46028]
[1758886660968,15.96959151,3908.0,3907.9,0.46028]
[1758886661164,18.57798259,3908.0,3907.9,0.46028]
[1758886662761,18.57798259,3908.0,3907.9,0.88048]
[1758886662963,18.84098259,3908.0,3907.9,0.88048]
[1758886663873,18.57798259,3908.0,3907.9,0.88048]
[1758886664761,18.84098259,3908.0,3907.9,0.88048]
[1758886665162,18.9393944,3908.0,3907.9,0.88048]
[1758886665463,18.6763944,3908.0,3907.9,0.88048]
[1758886665766,18.9383944,3908.0,3907.9,0.88048]
[1758886666971,0.09841181,3908.0,3907.9,1.41718]
[1758886668471,0.09841181,3908.0,3907.9,1.67918]
[1758886668870,0.09841181,3908.0,3907.9,4.28757108]
[1758886669168,0.0189,3908.5,3908.4,0.46022]
[1758886669363,0.0189,3908.5,3908.4,1.67912]
[1758886669668,3.2078,3908.7,3908.6,1.41709]
[1758886670367,5.81619108,3909.1,3909.0,0.62415]
[1758886670566,5.81619108,3909.1,3909.0,1.04435]
[1758886670774,19.17739151,3909.1,3909.0,1.58105]
[1758886671864,15.96959151,3909.1,3909.0,1.58105]
[1758886672463,15.96959151,3909.1,3909.0,1.04435]
[1758886674067,0.46019,3908.6,3908.4,0.46021]
[1758886674272,2.60839108,3908.5,3908.4,0.46021]
[1758886674472,18.57798259,3908.5,3908.4,0.88041]
[1758886674670,18.57798259,3908.5,3908.3,0.262]
[1758886674671,0.46022,3908.4,3908.3,0.262]
[1758886674877,16.42981151,3908.4,3908.3,0.6822]
[1758886675075,16.42981151,3908.4,3908.3,0.262]
[1758886675372,16.42981151,3908.4,3908.3,0.6822]
[1758886675977,16.42981151,3908.4,3908.3,0.262]
[1758886676477,15.96959151,3908.4,3908.3,1.67913]
[1758886676661,15.96959151,3908.4,3908.3,1.40503]
[1758886678373,15.96959151,3908.4,3908.3,1.67913]
[1758886678775,15.96959151,3908.4,3908.3,1.14243]
[1758886679486,16.42981151,3908.4,3908.3,0.6822]
[1758886679671,0.46024,3908.2,3907.8,0.6822]
[1758886679875,2.60839108,3907.9,3907.8,0.6822]
[1758886680076,18.57798259,3907.9,3907.8,0.6822]
[1758886680382,3.2078,3908.3,3908.2,0.73434]
[1758886680581,3.2078,3908.3,3908.2,1.41714]
[1758886680782,3.2078,3908.3,3908.2,1.67914]
[1758886681176,0.09525833,3908.3,3908.2,1.67914]
[1758886684186,0.09525833,3908.3,3908.2,6.67914]
[1758886684876,3.2078,3909.2,3909.1,0.2799]
[1758886685077,0.0583,3909.2,3909.1,1.69393]
[1758886686183,3.3244,3909.6,3909.5,1.59189]
[1758886686687,19.29399151,3909.6,3909.5,1.59189]
[1758886687986,0.1166,3909.3,3909.0,0.16]
[1758886688290,0.5367,3908.4,3908.3,1.12703]
[1758886688591,16.70209151,3908.4,3908.3,1.12703]
[1758886688779,16.70209151,3908.4,3908.3,0.46023]
[1758886688975,16.50629151,3908.4,3908.3,1.41173]
[1758886689380,16.50629151,3908.4,3908.3,0.85963]
[1758886689579,16.70209151,3908.4,3908.3,0.85963]
[1758886689885,16.70209151,3908.4,3908.3,0.46023]
[1758886690485,16.50629151,3908.4,3908.3,0.46023]
[1758886690788,16.50629151,3908.4,3908.3,1.41173]
[1758886691183,0.5367,3908.8,3908.7,0.2674]
[1758886691389,16.50629151,3908.8,3908.7,1.12698]
[1758886691581,16.50629151,3908.8,3908.7,1.41168]
[1758886692085,3.2078,3909.0,3908.9,0.46016]
[1758886692277,3.2078,3909.0,3908.9,1.67366]
[1758886692684,3.7445,3909.4,3909.3,0.8595]
[1758886692994,4.4004,3909.4,3909.3,0.8595]
[1758886693189,19.90989151,3909.4,3909.3,0.8595]
[1758886693394,0.7325,3909.2,3908.9,0.262]
[1758886693688,0.5367,3909.0,3908.9,1.38896]
[1758886694193,0.5367,3909.0,3908.9,1.67366]
[1758886696883,3.7445,3909.4,3909.3,0.72751]
[1758886697083,3.83940548,3909.4,3909.3,1.12691]
[1758886697288,19.80899699,3909.4,3909.3,1.12691]
[1758886697487,19.80899699,3909.4,3909.3,1.41161]
[1758886699286,19.53419699,3909.4,3909.3,1.41161]
[1758886699484,19.80899699,3909.4,3909.3,1.12691]
[1758886699685,20.00479699,3909.4,3909.3,1.12691]
[1758886700081,19.80899699,3909.4,3909.3,1.12691]
[1758886701091,19.80899699,3909.4,3909.3,0.46011]
[1758886701290,19.80899699,3909.4,3909.3,1.12691]
[1758886702292,19.80899699,3909.4,3909.3,1.41161]
[1758886704093,20.46489699,3909.4,3909.3,1.12691]
[1758886704296,20.00479699,3909.4,3909.3,1.12691]
[1758886704885,19.80899699,3909.4,3909.3,1.12691]
[1758886706484,16.60119699,3909.4,3909.3,1.41161]
[1758886707895,17.25709699,3909.4,3909.3,0.46011]
[1758886708094,16.79699699,3909.4,3909.3,0.85951]
[1758886708494,16.79699699,3909.4,3909.3,1.12691]
[1758886709088,16.60119699,3909.4,3909.3,1.12691]
[1758886709293,16.60119699,3909.4,3909.3,1.41161]
[1758886709694,16.60119699,3909.4,3909.3,1.12691]
[1758886709900,16.79699699,3909.4,3909.3,1.12691]
[1758886710907,17.25709699,3909.4,3909.3,1.12691]
[1758886711097,16.60119699,3909.4,3909.3,1.41161]
[1758886711403,0.09490548,3909.4,3909.3,1.41161]
[1758886712195,0.09490548,3909.4,3909.3,6.41161]
[1758886712502,0.09490548,3909.4,3909.3,1.41161]
[1758886712503,0.35680548,3909.4,3909.3,1.41161]
[1758886712692,16.60119699,3909.4,3909.3,0.6668]
[1758886712896,0.5367,3909.1,3909.0,0.88504]
[1758886713096,0.63160548,3909.1,3909.0,1.54644]
[1758886713494,0.63160548,3909.1,3909.0,1.0863]
[1758886713495,1.09174548,3909.1,3909.0,1.0863]
[1758886713696,0.63160548,3909.1,3909.0,1.54645]
[1758886713897,0.63160548,3909.1,3909.0,0.8243]
[1758886714096,0.7325,3908.6,3908.5,1.01711]
[1758886714298,2.84321578,3908.6,3908.5,1.54651]
[1758886714498,0.63160548,3908.6,3908.5,1.83121]
[1758886714899,16.60119699,3908.6,3908.5,1.83121]
[1758886715102,16.79699699,3908.6,3908.5,0.8189]
[1758886715294,16.79699699,3908.6,3908.5,1.27911]
[1758886715499,16.60119699,3908.6,3908.5,1.54651]
[1758886716006,16.60119699,3908.6,3908.5,1.83121]
[1758886716500,17.06138699,3908.6,3908.5,1.0863]
[1758886716700,16.60119699,3908.6,3908.5,1.83121]
[1758886717095,16.79699699,3908.6,3908.5,1.27911]
[1758886717299,16.60119699,3908.6,3908.5,1.54651]
[1758886718102,16.60119699,3908.6,3908.1,0.91010653]
[1758886718295,0.183,3908.1,3908.0,0.3849]
[1758886718500,16.78929699,3908.1,3908.0,0.8106]
[1758886718699,16.60629699,3908.1,3908.0,0.8106]
[1758886718901,0.7248,3908.0,3907.9,0.6469]
[1758886719103,0.81970548,3908.0,3907.9,1.37518]
[1758886719501,0.81970548,3908.0,3907.9,1.10718]
[1758886719703,19.00090729,3908.0,3907.9,1.10718]
[1758886719899,0.09490548,3908.0,3907.9,1.63888]
[1758886720803,0.63670548,3908.0,3907.9,1.37688]
[1758886721007,16.78929699,3908.0,3907.9,1.10718]
[1758886721509,16.78929699,3908.0,3907.9,1.37518]
[1758886721808,16.78929699,3908.0,3907.9,0.72228]
[1758886722308,17.24955699,3908.0,3907.9,0.72228]
[1758886722608,0.5418,3907.6,3907.5,0.428]
[1758886722906,0.63670548,3907.6,3907.5,1.15032]
[1758886723106,0.63670548,3907.6,3907.5,1.53522]
[1758886723309,16.60629699,3907.6,3907.5,1.53522]
[1758886723511,16.78929699,3907.6,3907.5,0.72232]
[1758886723700,16.78929699,3907.6,3907.5,1.10722]
[1758886724005,0.36970548,3907.6,3907.5,1.79662]
[1758886724207,0.63670548,3907.6,3907.5,1.79662]
[1758886724405,16.78929699,3907.6,3907.5,1.26492]
[1758886724706,16.78929699,3907.6,3907.5,0.72232]
[1758886725098,17.24960699,3907.6,3907.5,0.262]
[1758886725297,0.5418,3907.1,3907.0,4.21058]
[1758886725497,16.78929699,3907.1,3907.0,4.47258]
[1758886725695,16.60629699,3907.1,3907.0,5.00428]
[1758886725910,0.09490548,3907.1,3907.0,5.00428]
[1758886726310,0.36970548,3907.1,3907.0,5.00428]
[1758886726506,0.63670548,3907.1,3907.0,5.00428]
[1758886727003,0.09490548,3907.1,3907.0,5.00428]
[1758886727204,0.2748,3907.5,3907.4,0.99203]
[1758886727403,1.09646005,3907.5,3907.4,1.37693]
[1758886727608,17.24905156,3907.5,3907.4,0.6529]
[1758886727810,17.24905156,3907.5,3907.4,1.11324]
[1758886728408,0.7248,3907.4,3907.3,0.46035]
[1758886728717,0.81914005,3907.4,3907.3,0.84525]
[1758886728911,0.81914005,3907.4,3907.3,1.11325]
[1758886728912,16.78873156,3907.4,3907.3,1.11325]
[1758886729208,16.60573156,3907.4,3907.3,1.11325]
[1758886729600,17.06607156,3907.4,3907.3,0.6529]
[1758886729802,0.5418,3907.2,3907.1,0.46037]
[1758886730015,17.24909156,3907.2,3907.1,0.84527]
[1758886730205,1.00219,3906.9,3906.8,0.8453]
[1758886730408,0.81914005,3906.9,3906.8,1.1073]
[1758886730612,16.78873156,3906.9,3906.8,1.1073]
[1758886730910,16.78873156,3906.9,3906.8,1.3753]
[1758886731102,17.24912156,3906.9,3906.8,1.3753]
[1758886731609,17.24899763,3906.9,3906.8,0.9149]
[1758886731815,17.24899763,3906.9,3906.8,0.262]
[1758886732010,1.18522,3906.7,3906.6,3.2078]
[1758886732211,17.24902763,3906.7,3906.6,3.5927]
[1758886732516,0.63601612,3906.7,3906.6,4.58483]
[1758886732716,0.09421612,3906.7,3906.6,4.58483]
[1758886733818,0.09421612,3906.7,3906.6,4.84683]
[1758886734213,0.36901612,3906.7,3906.6,4.3864]
[1758886734415,0.63601612,3906.7,3906.6,4.84683]
[1758886735515,17.06602763,3906.7,3906.6,4.3864]
[1758886735706,16.60560763,3906.7,3906.6,4.84683]
[1758886736115,16.33860763,3906.7,3906.6,4.84683]
[1758886736715,17.06602763,3906.7,3906.6,4.84683]
[1758886736921,17.06602763,3906.7,3906.6,4.3864]
[1758886737117,17.06602763,3906.7,3906.6,4.84683]
[1758886738020,17.24902763,3906.7,3906.6,4.58313]
[1758886738522,16.78860763,3906.7,3906.6,4.58313]
[1758886738721,16.60560763,3906.7,3906.6,4.58313]
[1758886739631,16.60560763,3906.7,3906.6,4.84683]
[1758886740232,16.6055342,3906.7,3906.6,4.84683]
[1758886742027,17.2489542,3906.7,3906.6,3.8547]
[1758886742322,17.2489542,3906.7,3906.6,4.31513]
[1758886742622,17.2489542,3906.7,3906.6,0.72243]
[1758886742623,16.7885342,3906.7,3906.6,0.72243]
[1758886742822,16.7885342,3906.7,3906.6,1.10733]
[1758886743016,16.7885342,3906.7,3906.6,0.72243]
[1758886743017,29.32853658,3906.7,3906.6,0.72243]
[1758886743219,16.7885342,3906.7,3906.6,0.72243]
[1758886743417,16.3385342,3906.7,3906.6,1.63903]
[1758886743615,0.09414269,3906.7,3906.6,1.63903]
[1758886745024,0.09414269,3906.7,3906.6,4.84683]
[1758886746024,0.09414269,3906.7,3906.6,9.84683]
[1758886746521,0.09414269,3906.7,3906.6,12.06048032]
[1758886746830,0.262,3907.7,3907.6,1.38221]
[1758886746831,3.6681,3907.7,3907.6,1.38221]
[1758886747126,3.2078,3907.7,3907.6,1.64421]
[1758886747316,3.2078,3908.2,3908.0,0.46026]
[1758886747520,3.2078,3908.2,3908.1,1.1839]
[1758886747731,3.5015,3908.2,3908.1,1.1839]
[1758886747923,3.776,3908.2,3908.1,1.1839]
[1758886748224,19.74559151,3908.2,3908.1,1.1839]
[1758886750029,3.776,3908.2,3908.1,1.1839]
[1758886750330,19.74559151,3908.2,3908.1,1.1839]
[1758886750526,3.5015,3908.2,3908.1,1.64415]
[1758886750827,0.0255,3908.2,3908.1,1.64415]
[1758886751222,0.2934,3908.2,3908.1,1.38215]
[1758886751424,0.2934,3908.2,3908.1,1.64415]
[1758886752022,0.0255,3908.2,3908.1,1.64415]
[1758886753729,0.7886,3909.0,3908.8,0.46017]
[1758886753915,0.7886,3909.0,3908.9,0.3855]
[1758886754119,1.24875,3909.0,3908.9,0.3855]
[1758886754321,0.46018,3908.8,3908.7,0.46018]
[1758886754624,1.24878,3908.8,3908.7,0.84568]
[1758886754823,16.75819151,3908.8,3908.7,0.84568]
[1758886755530,17.21836151,3908.8,3908.7,0.84568]
[1758886755730,16.75819151,3908.8,3908.7,0.84568]
[1758886756032,17.21836151,3908.8,3908.7,0.84568]
[1758886756523,16.75819151,3908.8,3908.7,0.84568]
[1758886756719,17.21836151,3908.8,3908.7,0.46018]
[1758886757426,17.21836151,3908.8,3908.6,0.262]
[1758886757427,0.7886,3908.7,3908.6,1.10769]
[1758886757623,19.70209151,3908.7,3908.6,1.37869]
[1758886758630,19.70209151,3908.7,3908.6,1.63229]
[1758886758931,19.7937684,3908.7,3908.6,1.63229]
[1758886759122,16.5859684,3908.7,3908.6,1.63229]
[1758886759324,0.09167689,3908.7,3908.6,6.63229]
[1758886759923,0.0255,3908.8,3908.6,6.24679]
[1758886760129,0.0255,3908.8,3908.7,0.9101]
[1758886760527,0.11711291,3908.8,3908.7,0.9101]
[1758886760833,0.0255,3908.8,3908.7,1.37028]
[1758886761133,3.9964,3909.7,3909.6,1.11658]
[1758886761442,3.82407805,3909.7,3909.6,1.11658]
[1758886761627,19.79366956,3909.7,3909.6,1.11658]
[1758886761831,19.79366956,3909.7,3909.6,1.63218]
[1758886761832,16.58586956,3909.7,3909.6,1.63218]
[1758886763437,16.32906956,3909.7,3909.6,1.63218]
[1758886764832,16.58586956,3909.7,3909.6,1.63218]
[1758886765329,0.5502,3910.4,3910.3,0.45999]
[1758886765534,0.9055304,3910.4,3910.3,0.45999]